fUST/lending_fUST_20250419
["ID","MTS","AMOUNT","RATE_DAILY","PERIOD"]
[358366962,1744997878594,481.0,0.00016,10]
[358367016,1744998631703,-285.95055139,0.000189,2]
[358367017,1744998631713,-186.35828419,0.00019968,2]
[358367018,1744998631722,-208.42721502,0.00019969,2]
[358367019,1744998631732,-186.35828418,0.00019969,2]
[358367020,1744998631741,-236.0,0.00020068,2]
[358367021,1744998631750,-300.0,0.00020068,2]
[358367022,1744998631760,-348.5139428,0.00020068,2]
[358367023,1744998631769,-160.0,0.00020069,2]
[358367024,1744998631778,-12559.7366029,0.00020069,2]
[358367025,1744998631788,-300.0,0.00020069,2]
[358367026,1744998631798,-839.29847495,0.00020069,2]
[358367027,1744998631808,-160.0,0.00020069,2]
[358367028,1744998631818,-500.0,0.00020069,2]
[358367029,1744998631827,-500.0,0.00020069,2]
[358367030,1744998631836,-500.0,0.00020069,2]
[358367031,1744998631845,-500.0,0.00020069,2]
[358367032,1744998631855,-162.06569317,0.00020069,2]
[358367033,1744998631865,-500.0,0.00020069,2]
[358367034,1744998631875,-500.0,0.00020069,2]
[358367035,1744998631885,-500.0,0.00020069,2]
[358367036,1744998631895,-626.26848637,0.00020069,2]
[358367037,1744998631905,-500.0,0.00020069,2]
[358367038,1744998631915,-442.85568397,0.00020069,2]
[358367039,1744998631925,-500.0,0.00020069,2]
[358367040,1744998631935,-500.0,0.00020069,2]
[358367041,1744998631946,-500.0,0.00020069,2]
[358367042,1744998631955,-500.0,0.00020069,2]
[358367043,1744998631965,-500.0,0.00020069,2]
[358367044,1744998631974,-500.0,0.00020069,2]
[358367045,1744998631984,-500.0,0.00020069,2]
[358367046,1744998631994,-500.0,0.00020069,2]
[358367047,1744998632003,-500.0,0.00020069,2]
[358367048,1744998632012,-500.0,0.00020069,2]
[358367049,1744998632022,-500.0,0.00020069,2]
[358367050,1744998632031,-500.0,0.00020069,2]
[358367051,1744998632041,-500.0,0.00020069,2]
[358367052,1744998632050,-500.0,0.00020069,2]
[358367053,1744998632060,-500.0,0.00020069,2]
[358367054,1744998632069,-500.0,0.00020069,2]
[358367055,1744998632078,-500.0,0.00020069,2]
[358367056,1744998632088,-500.0,0.00020069,2]
[358367057,1744998632097,-500.0,0.00020069,2]
[358367058,1744998632107,-500.0,0.00020069,2]
[358367059,1744998632116,-500.0,0.00020069,2]
[358367060,1744998632125,-500.0,0.00020069,2]
[358367061,1744998632134,-472.22859634,0.00020069,2]
[358367062,1744998632143,-500.0,0.00020069,2]
[358367063,1744998632152,-500.0,0.00020069,2]
[358367064,1744998632161,-500.0,0.00020069,2]
[358367065,1744998632171,-500.0,0.00020069,2]
[358367066,1744998632180,-500.0,0.00020069,2]
[358367067,1744998632189,-500.0,0.00020069,2]
[358367068,1744998632199,-500.0,0.00020069,2]
[358367069,1744998632208,-500.0,0.00020069,2]
[358367070,1744998632217,-500.0,0.00020069,2]
[358367071,1744998632226,-500.0,0.00020069,2]
[358367072,1744998632235,-180.69649848,0.00020069,2]
[358367073,1744998632244,-702.86059124,0.00020069,2]
[358367074,1744998632255,-702.86059124,0.00020069,2]
[358367075,1744998632264,-702.86059124,0.00020069,2]
[358367076,1744998632274,-702.86059124,0.00020069,2]
[358367077,1744998632282,-702.86059124,0.00020069,2]
[358367078,1744998632291,-702.86059124,0.00020069,2]
[358367079,1744998632301,-702.86059124,0.00020069,2]
[358367080,1744998632311,-702.86059124,0.00020069,2]
[358367081,1744998632319,-702.86059124,0.00020069,2]
[358367082,1744998632328,-702.86059124,0.00020069,2]
[358367083,1744998632337,-702.86059124,0.00020069,2]
[358367084,1744998632346,-702.86059124,0.00020069,2]
[358367085,1744998632355,-702.86059124,0.00020069,2]
[358367086,1744998632364,-702.86059124,0.00020069,2]
[358367087,1744998632373,-702.86059124,0.00020069,2]
[358367088,1744998632382,-702.86059124,0.00020069,2]
[358367089,1744998632391,-702.86059124,0.00020069,2]
[358367090,1744998632401,-702.86059124,0.00020069,2]
[358367091,1744998632410,-702.86059124,0.00020069,2]
[358367092,1744998632419,-702.86059124,0.00020069,2]
[358367093,1744998632428,-702.86059124,0.00020069,2]
[358367094,1744998632452,-702.86059124,0.00020069,2]
[358367095,1744998632463,-702.86059124,0.00020069,2]
[358367096,1744998632473,-702.86059124,0.00020069,2]
[358367097,1744998632483,-702.86059124,0.00020069,2]
[358367098,1744998632493,-702.86059124,0.00020069,2]
[358367099,1744998632503,-702.86059124,0.00020069,2]
[358367100,1744998632513,-702.86059124,0.00020069,2]
[358367101,1744998632523,-702.86059124,0.00020069,2]
[358367102,1744998632533,-702.86059124,0.00020069,2]
[358367103,1744998632543,-702.86059124,0.00020069,2]
[358367104,1744998632555,-702.86059124,0.00020069,2]
[358367105,1744998632565,-702.86059124,0.00020069,2]
[358367106,1744998632575,-702.86059124,0.00020069,2]
[358367107,1744998632585,-702.86059124,0.00020069,2]
[358367108,1744998632597,-702.86059124,0.00020069,2]
[358367109,1744998632607,-702.86059124,0.00020069,2]
[358367110,1744998632617,-702.86059124,0.00020069,2]
[358367111,1744998632627,-702.86059124,0.00020069,2]
[358367112,1744998632637,-702.86059124,0.00020069,2]
[358367113,1744998632648,-702.86059124,0.00020069,2]
[358367114,1744998632657,-702.86059124,0.00020069,2]
[358367115,1744998632668,-702.86059124,0.00020069,2]
[358367116,1744998632677,-702.86059124,0.00020069,2]
[358367117,1744998632687,-702.86059124,0.00020069,2]
[358367118,1744998632697,-702.86059124,0.00020069,2]
[358367119,1744998632706,-702.86059124,0.00020069,2]
[358367120,1744998632717,-702.86059124,0.00020069,2]
[358367121,1744998632727,-702.86059124,0.00020069,2]
[358367122,1744998632737,-672.11044036,0.00020069,2]
[358367123,1744998632747,-672.11044036,0.00020069,2]
[358367124,1744998632756,-672.11044036,0.00020069,2]
[358367125,1744998632766,-672.11044036,0.00020069,2]
[358367126,1744998632776,-672.11044036,0.00020069,2]
[358367127,1744998632786,-672.11044036,0.00020069,2]
[358367128,1744998632795,-672.11044036,0.00020069,2]
[358367129,1744998632805,-672.11044036,0.00020069,2]
[358367130,1744998632815,-672.11044036,0.00020069,2]
[358367131,1744998632825,-672.11044036,0.00020069,2]
[358367132,1744998632834,-672.11044036,0.00020069,2]
[358367133,1744998632844,-672.11044036,0.00020069,2]
[358367134,1744998632854,-672.11044036,0.00020069,2]
[358367135,1744998632863,-672.11044036,0.00020069,2]
[358367136,1744998632873,-672.11044036,0.00020069,2]
[358367137,1744998632882,-672.11044036,0.00020069,2]
[358367138,1744998632892,-500.0,0.000201,2]
[358367139,1744998632902,-500.0,0.000201,2]
[358367140,1744998632911,-500.0,0.000201,2]
[358367141,1744998632921,-500.0,0.000201,2]
[358367142,1744998632931,-500.0,0.000201,2]
[358367143,1744998632940,-500.0,0.000201,2]
[358367144,1744998632949,-500.0,0.000201,2]
[358367145,1744998632959,-500.0,0.000201,2]
[358367146,1744998632968,-500.0,0.000201,2]
[358367147,1744998632978,-500.0,0.000201,2]
[358367148,1744998632988,-500.0,0.000201,2]
[358367149,1744998632997,-300.0,0.000201,2]
[358367150,1744998633007,-500.0,0.000201,2]
[358367151,1744998633017,-500.0,0.000201,2]
[358367152,1744998633026,-502.58819591,0.000201,2]
[358367153,1744998633036,-500.0,0.000201,2]
[358367154,1744998633046,-500.0,0.000201,2]
[358367155,1744998633056,-500.0,0.000201,2]
[358367156,1744998633066,-500.0,0.000201,2]
[358367157,1744998633076,-500.0,0.000201,2]
[358367158,1744998633085,-208.42721499,0.00020431,2]
[358367159,1744998633095,-538.47,0.000208,2]
[358367160,1744998633105,-208.42721499,0.00020893,2]
[358367161,1744998633114,-21316.71143478,0.0002099,2]
[358367162,1744998633129,-4237.62809071,0.0002099,2]
[358367203,1744998637866,-182.67775577,0.00020068,2]
[358367205,1744998637875,-3685.21534974,0.0002099,2]
[358367207,1744998637887,-1538.0126962,0.0002099,2]
[358367208,1744998637898,-12496.91726778,0.0002099,2]
[358367210,1744998637907,-500.0,0.0002101,2]
[358367212,1744998637917,-500.0,0.0002101,2]
[358367213,1744998637926,-500.0,0.0002101,2]
[358367214,1744998637934,-500.0,0.0002101,2]
[358367216,1744998638145,-500.0,0.0002101,2]
[358367217,1744998638155,-500.0,0.0002101,2]
[358367218,1744998638165,-500.0,0.0002101,2]
[358367219,1744998638174,-500.0,0.0002101,2]
[358367220,1744998638183,-500.0,0.0002101,2]
[358367221,1744998638192,-500.0,0.0002101,2]
[358367222,1744998638201,-500.0,0.0002101,2]
[358367223,1744998638210,-500.0,0.0002101,2]
[358367224,1744998638219,-500.0,0.0002101,2]
[358367225,1744998638228,-500.0,0.0002101,2]
[358367226,1744998638237,-500.0,0.0002101,2]
[358367227,1744998638246,-500.0,0.0002101,2]
[358367228,1744998638255,-500.0,0.0002101,2]
[358367229,1744998638263,-700.0,0.0002101,2]
[358367230,1744998638272,-500.0,0.0002101,2]
[358367231,1744998638282,-500.0,0.0002101,2]
[358367232,1744998638291,-500.0,0.0002101,2]
[358367233,1744998638301,-500.0,0.0002101,2]
[358367234,1744998638311,-500.0,0.0002101,2]
[358367235,1744998638320,-500.0,0.0002101,2]
[358367236,1744998638329,-208.42721499,0.00021355,2]
[358367237,1744998638339,-267.081938,0.00021695,2]
[358367238,1744998638349,-601.8082296,0.00021697,2]
[358367239,1744998638358,-600.0,0.00021744,2]
[358367240,1744998638368,-200.0,0.000218,2]
[358367241,1744998638377,-28493.60372362,0.00021817,2]
[358367242,1744998638389,-7880.61719588,0.00021817,2]
[358367243,1744998638404,-403.19028049,0.00021817,2]
[358367244,1744998638416,-530.67,0.00021817,2]
[358367257,1744998640154,-1568.40889104,0.00021817,2]
[358367258,1744998640166,-2000.0,0.00021817,2]
[358367259,1744998640177,-512.37431689,0.00021817,2]
[358367274,1744998642882,-73534.45398303,0.00021817,2]
[358367275,1744998642895,-208.42721499,0.00021817,2]
[358367276,1744998642905,-420.40766787,0.00021826,2]
[358367277,1744998642915,-160.0,0.00021826,2]
[358367278,1744998642925,-160.0,0.00021826,2]
[358367279,1744998642934,-307.2911066,0.000219,2]
[358367280,1744998642944,-200.0,0.000219,2]
[358367281,1744998642954,-151.0,0.000219,120]
[358367282,1744998642963,-1855.07551354,0.000219,3]
[358367283,1744998642974,-183.66314054,0.00021916,2]
[358367284,1744998642983,-177.38996013,0.00021916,2]
[358367286,1744998642992,-6972.00397908,0.00021917,2]
[358367288,1744998643002,-3397.03705872,0.00021917,3]
[358367289,1744998643011,-502.5075424,0.00021917,2]
[358367290,1744998643021,-500.0,0.00021917,2]
[358367291,1744998643031,-518.23244624,0.00021917,2]
[358367292,1744998643041,-637.17732046,0.00021917,2]
[358367293,1744998643050,-502.8047253,0.00021917,2]
[358367294,1744998643060,-500.0,0.00021917,2]
[358367296,1744998643072,-501.34272863,0.00021917,2]
[358367298,1744998643082,-500.0,0.00021917,2]
[358367300,1744998643092,-500.0,0.00021917,2]
[358367302,1744998643102,-500.0,0.00021917,2]
[358367304,1744998643112,-500.0,0.00021917,2]
[358367306,1744998643122,-503.803757,0.00021917,2]
[358367307,1744998643132,-501.23946602,0.00021917,2]
[358367308,1744998643142,-501.26336076,0.00021917,2]
[358367309,1744998643152,-500.0,0.00021917,2]
[358367310,1744998643161,-504.80993198,0.00021917,2]
[358367311,1744998643171,-502.01472921,0.00021917,2]
[358367312,1744998643181,-500.0,0.00021917,2]
[358367313,1744998643191,-503.0407186,0.00021917,2]
[358367314,1744998643200,-500.0,0.00021917,2]
[358367315,1744998643210,-500.0,0.00021917,2]
[358367316,1744998643220,-500.0,0.00021917,2]
[358367317,1744998643232,-118.93964313,0.00021917,2]
[358367318,1744998643245,-381.06035687,0.00021917,2]
[358367319,1744998643255,-278.23036453,0.00021917,2]
[358367324,1744998645813,-227.14021776,0.00021916,2]
[358367325,1744998645824,-228.84389458,0.00021917,2]
[358367326,1744998645834,-351.20435207,0.00021917,2]
[358367327,1744998645934,-150.0231968,0.00021917,2]
[358367328,1744998645944,-500.0,0.00021917,2]
[358367329,1744998645954,-503.46549718,0.00021917,2]
[358367330,1744998645963,-501.80764258,0.00021917,2]
[358367331,1744998645974,-509.07235936,0.00021917,2]
[358367333,1744998645983,-500.0,0.00021917,2]
[358367335,1744998645993,-500.0,0.00021917,2]
[358367337,1744998646003,-429.33130408,0.00021917,2]
[358367340,1744998646022,-72.24230439,0.00021917,2]
[358367342,1744998646031,-504.27538067,0.00021917,2]
[358367344,1744998646041,-503.10869204,0.00021917,2]
[358367347,1744998646061,-514.94,0.00021917,2]
[358367350,1744998646073,-500.0,0.00021917,2]
[358367351,1744998646083,-1127.86,0.00021917,2]
[358367352,1744998646093,-500.0,0.00021917,2]
[358367353,1744998646104,-501.88925789,0.00021917,2]
[358367354,1744998646114,-504.59614562,0.00021917,2]
[358367355,1744998646124,-500.0,0.00021917,2]
[358367356,1744998646134,-501.65336841,0.00021917,2]
[358367357,1744998646144,-500.0,0.00021917,2]
[358367358,1744998646154,-503.14572963,0.00021917,2]
[358367359,1744998646164,-500.0,0.00021917,2]
[358367360,1744998646174,-501.09433222,0.00021917,2]
[358367361,1744998646184,-502.17987767,0.00021917,2]
[358367362,1744998646194,-500.81089281,0.00021917,2]
[358367363,1744998646204,-502.6329933,0.00021917,2]
[358367364,1744998646216,-521.88,0.00021917,2]
[358367365,1744998646226,-503.30102143,0.00021917,2]
[358367366,1744998646236,-500.0,0.00021917,2]
[358367367,1744998646246,-500.0,0.00021917,2]
[358367368,1744998646256,-502.16633243,0.00021917,2]
[358367369,1744998646266,-500.0,0.00021917,2]
[358367370,1744998646277,-500.0,0.00021917,2]
[358367371,1744998646287,-500.0,0.00021917,2]
[358367372,1744998646297,-501.23201198,0.00021917,2]
[358367373,1744998646307,-501.82132185,0.00021917,2]
[358367374,1744998646318,-500.0,0.00021917,2]
[358367375,1744998646328,-501.9999605,0.00021917,2]
[358367376,1744998646338,-500.0,0.00021917,2]
[358367377,1744998646348,-503.04469252,0.00021917,2]
[358367378,1744998646358,-503.00605235,0.00021917,2]
[358367379,1744998646368,-500.0,0.00021917,2]
[358367380,1744998646378,-183.06071006,0.00021917,2]
[358367381,1744998646388,-500.0,0.00021917,2]
[358367382,1744998646399,-500.0,0.00021917,2]
[358367383,1744998646408,-604.1,0.00021917,2]
[358367384,1744998646418,-500.0,0.00021917,2]
[358367385,1744998646428,-500.0,0.00021917,2]
[358367386,1744998646438,-500.0,0.00021917,2]
[358367387,1744998646448,-500.0,0.00021917,2]
[358367388,1744998646458,-500.0,0.00021917,2]
[358367389,1744998646467,-500.0,0.00021917,2]
[358367390,1744998646477,-500.0,0.00021917,2]
[358367391,1744998646487,-500.0,0.00021917,2]
[358367392,1744998646497,-500.0,0.00021917,2]
[358367393,1744998646508,-500.0,0.00021917,2]
[358367394,1744998646518,-500.0,0.00021917,2]
[358367395,1744998646528,-551.11,0.00021917,2]
[358367396,1744998646538,-500.0,0.00021917,2]
[358367397,1744998646549,-500.0,0.00021917,2]
[358367398,1744998646561,-500.0,0.00021917,2]
[358367399,1744998646571,-500.0,0.00021917,2]
[358367400,1744998646581,-500.0,0.00021917,2]
[358367401,1744998646591,-500.0,0.00021917,2]
[358367402,1744998646603,-500.0,0.00021917,2]
[358367403,1744998646613,-500.0,0.00021917,2]
[358367404,1744998646623,-500.0,0.00021917,2]
[358367405,1744998646633,-500.0,0.00021917,2]
[358367406,1744998646643,-500.0,0.00021917,2]
[358367407,1744998646654,-500.0,0.00021917,2]
[358367408,1744998646664,-500.0,0.00021917,2]
[358367409,1744998646674,-500.0,0.00021917,2]
[358367410,1744998646684,-500.0,0.00021917,2]
[358367411,1744998646695,-500.0,0.00021917,2]
[358367412,1744998646705,-500.0,0.00021917,2]
[358367413,1744998646716,-500.0,0.00021917,2]
[358367414,1744998646726,-500.0,0.00021917,2]
[358367415,1744998646736,-500.0,0.00021917,2]
[358367416,1744998646746,-500.0,0.00021917,2]
[358367417,1744998646757,-500.0,0.00021917,2]
[358367418,1744998646768,-17.3643352,0.00021917,2]
[358367536,1744999838001,-4019.25548696,0.0001823,2]
[358367537,1744999838012,-1509.89188768,0.0001823,2]
[358367538,1744999838158,-175.27116146,0.0001823,2]
[358367539,1744999838166,-250.0,0.000188,2]
[358367540,1744999838174,-212.36277354,0.000188,2]
[358367541,1744999838182,-300.0,0.00018877,2]
[358367542,1744999838190,-4042.6649539,0.00018878,2]
[358367543,1744999838197,-321.22202161,0.00019796,2]
[358367544,1744999838205,-190.63370093,0.00019817,2]
[358367545,1744999838212,-76.39636256,0.00019894,2]
[358367546,1744999838220,-423.60363744,0.00019894,2]
[358367547,1744999838227,-500.0,0.00019894,2]
[358367548,1744999838234,-500.0,0.00019894,2]
[358367549,1744999838240,-468.43655855,0.00019894,2]
[358367550,1744999838249,-31.56344145,0.00019894,2]
[358367551,1744999838256,-500.0,0.00019894,2]
[358367552,1744999838263,-500.0,0.00019894,2]
[358367553,1744999838270,-290.98966425,0.00019894,2]
[358367554,1744999838276,-500.0,0.00019894,2]
[358367555,1744999838284,-500.0,0.00019894,2]
[358367556,1744999838292,-576.42561276,0.00019894,2]
[358367557,1744999838299,-500.0,0.00019894,2]
[358367558,1744999838305,-500.0,0.00019894,2]
[358367559,1744999838312,-500.0,0.00019894,2]
[358367560,1744999838318,-500.0,0.00019894,2]
[358367561,1744999838325,-500.0,0.00019894,2]
[358367562,1744999838332,-500.0,0.00019894,2]
[358367563,1744999838339,-500.0,0.00019894,2]
[358367564,1744999838346,-500.0,0.00019894,2]
[358367565,1744999838353,-133.63882368,0.00019894,2]
[358367566,1744999838362,-233.34082828,0.00019894,2]
[358367567,1744999838368,-500.0,0.00019894,2]
[358367568,1744999838374,-500.0,0.00019894,2]
[358367569,1744999838383,-500.0,0.00019894,2]
[358367570,1744999838390,-500.0,0.00019894,2]
[358367571,1744999838397,-500.0,0.00019894,2]
[358367572,1744999838404,-500.0,0.00019894,2]
[358367573,1744999838411,-448.32054128,0.00019894,2]
[358367587,1744999840303,-51.67945872,0.00019894,2]
[358367588,1744999840313,-500.0,0.00019894,2]
[358367589,1744999840323,-500.0,0.00019894,2]
[358367590,1744999840333,-400.00000001,0.00019894,2]
[358367591,1744999840342,-500.0,0.00019894,2]
[358367592,1744999840352,-500.0,0.00019894,2]
[358367593,1744999840362,-500.0,0.00019894,2]
[358367594,1744999840371,-355.02664464,0.00019894,2]
[358367595,1744999840384,-144.97335536,0.00019894,2]
[358367596,1744999840394,-500.0,0.00019894,2]
[358367597,1744999840404,-356.00728554,0.00019894,2]
[358367598,1744999840416,-143.99271446,0.00019894,2]
[358367599,1744999840426,-500.0,0.00019894,2]
[358367600,1744999840435,-294.97692288,0.00019894,2]
[358367601,1744999840459,-205.02307712,0.00019894,2]
[358367602,1744999840468,-500.0,0.00019894,2]
[358367603,1744999840477,-500.0,0.00019894,2]
[358367604,1744999840487,-500.0,0.00019894,2]
[358367605,1744999840497,-500.0,0.00019894,2]
[358367606,1744999840506,-500.0,0.00019894,2]
[358367607,1744999840516,-500.0,0.00019894,2]
[358367608,1744999840526,-500.0,0.00019894,2]
[358367609,1744999840536,-500.0,0.00019894,2]
[358367610,1744999840545,-500.0,0.00019894,2]
[358367611,1744999840555,-500.0,0.00019894,2]
[358367612,1744999840564,-500.0,0.00019894,2]
[358367613,1744999840578,-500.0,0.00019894,2]
[358367614,1744999840588,-500.0,0.00019894,2]
[358367615,1744999840597,-500.0,0.00019894,2]
[358367616,1744999840607,-500.0,0.00019894,2]
[358367617,1744999840616,-496.45540578,0.00019894,2]
[358367618,1744999840628,-3.54459422,0.00019894,2]
[358367619,1744999840638,-500.0,0.00019894,2]
[358367620,1744999840647,-500.0,0.00019894,2]
[358367621,1744999840656,-500.0,0.00019894,2]
[358367622,1744999840665,-500.0,0.00019894,2]
[358367623,1744999840674,-500.0,0.00019894,2]
[358367624,1744999840684,-500.0,0.00019894,2]
[358367625,1744999840693,-500.0,0.00019894,2]
[358367626,1744999840702,-500.0,0.00019894,2]
[358367627,1744999840713,-500.0,0.00019894,2]
[358367628,1744999840722,-500.0,0.00019894,2]
[358367629,1744999840733,-500.0,0.00019894,2]
[358367630,1744999840742,-500.0,0.00019894,2]
[358367631,1744999840751,-500.0,0.00019894,2]
[358367632,1744999840761,-500.0,0.00019894,2]
[358367633,1744999840771,-500.0,0.00019894,2]
[358367634,1744999840781,-500.0,0.00019894,2]
[358367635,1744999840791,-500.0,0.00019894,2]
[358367636,1744999840801,-500.0,0.00019894,2]
[358367637,1744999840810,-500.0,0.00019894,2]
[358367638,1744999840820,-500.0,0.00019894,2]
[358367639,1744999840830,-500.0,0.00019894,2]
[358367640,1744999840840,-500.0,0.00019894,2]
[358367641,1744999841017,-500.0,0.00019894,2]
[358367642,1744999841028,-500.0,0.00019894,2]
[358367643,1744999841038,-500.0,0.00019894,2]
[358367644,1744999841048,-500.0,0.00019894,2]
[358367645,1744999841058,-154.36100778,0.00019894,2]
[358367653,1744999842974,-345.63899222,0.00019894,2]
[358367654,1744999842985,-500.0,0.00019894,2]
[358367655,1744999842994,-500.0,0.00019894,2]
[358367656,1744999843006,-500.0,0.00019894,2]
[358367657,1744999843014,-500.0,0.00019894,2]
[358367658,1744999843023,-500.0,0.00019894,2]
[358367659,1744999843032,-500.0,0.00019894,2]
[358367660,1744999843041,-500.0,0.00019894,2]
[358367661,1744999843051,-500.0,0.00019894,2]
[358367662,1744999843060,-500.0,0.00019894,2]
[358367663,1744999843069,-500.0,0.00019894,2]
[358367664,1744999843078,-500.0,0.00019894,2]
[358367665,1744999843088,-500.0,0.00019894,2]
[358367666,1744999843098,-500.0,0.00019894,2]
[358367667,1744999843107,-500.0,0.00019894,2]
[358367668,1744999843117,-392.41141341,0.00019894,2]
[358367669,1744999843126,-500.0,0.00019894,2]
[358367670,1744999843136,-500.0,0.00019894,2]
[358367671,1744999843145,-500.0,0.00019894,2]
[358367672,1744999843155,-1905.73663725,0.000199,2]
[358367673,1744999843164,-500.0,0.000199,2]
[358367674,1744999843173,-500.0,0.000199,2]
[358367675,1744999843183,-500.0,0.000199,2]
[358367676,1744999843192,-500.0,0.000199,2]
[358367677,1744999843202,-500.0,0.000199,2]
[358367678,1744999843211,-393.40527231,0.00019967,2]
[358367679,1744999843221,-4172.37268112,0.00019968,2]
[358367744,1745000472144,5032.0,0.00018,10]
[358367851,1745001031978,-172.67699758,0.0001854,2]
[358367852,1745001031988,-300.0,0.00018727,2]
[358367854,1745001031998,-300.0,0.00018727,2]
[358367856,1745001032007,-500.0,0.00018728,2]
[358367857,1745001032017,-174.50590004,0.00018728,2]
[358367858,1745001032034,-325.49409996,0.00018728,2]
[358367859,1745001032044,-500.0,0.00018728,2]
[358367860,1745001032054,-500.0,0.00018728,2]
[358367861,1745001032064,-638.02262095,0.00018728,2]
[358367866,1745001032142,-11.41505099,0.00018728,2]
[358367867,1745001032152,-500.0,0.00018728,2]
[358367868,1745001032163,-500.0,0.00018728,2]
[358367869,1745001032173,-500.0,0.00018728,2]
[358367870,1745001032183,-500.0,0.00018728,2]
[358367872,1745001032193,-500.0,0.00018728,2]
[358367874,1745001032205,-500.0,0.00018728,2]
[358367876,1745001032215,-500.0,0.00018728,2]
[358367878,1745001032224,-500.0,0.00018728,2]
[358367880,1745001032235,-500.0,0.00018728,2]
[358367882,1745001032244,-500.0,0.00018728,2]
[358367884,1745001032253,-500.0,0.00018728,2]
[358367886,1745001032263,-500.0,0.00018728,2]
[358367888,1745001032273,-500.0,0.00018728,2]
[358367890,1745001032285,-500.0,0.00018728,2]
[358367891,1745001032295,-500.0,0.00018728,2]
[358367892,1745001032305,-500.0,0.00018728,2]
[358367893,1745001032315,-500.0,0.00018728,2]
[358367894,1745001032325,-500.0,0.00018728,2]
[358367895,1745001032334,-500.0,0.00018728,2]
[358367896,1745001032343,-500.0,0.00018728,2]
[358367897,1745001032352,-500.0,0.00018728,2]
[358367898,1745001032362,-500.0,0.00018728,2]
[358367899,1745001032371,-500.0,0.00018728,2]
[358367900,1745001032381,-500.0,0.00018728,2]
[358367901,1745001032390,-500.0,0.00018728,2]
[358367902,1745001032399,-500.0,0.00018728,2]
[358367903,1745001032409,-500.0,0.00018728,2]
[358367904,1745001032419,-500.0,0.00018728,2]
[358367905,1745001032428,-500.0,0.00018728,2]
[358367906,1745001032438,-500.0,0.00018728,2]
[358367907,1745001032448,-500.0,0.00018728,2]
[358367908,1745001032457,-500.0,0.00018728,2]
[358367909,1745001032467,-500.0,0.00018728,2]
[358367910,1745001032476,-500.0,0.00018728,2]
[358367911,1745001032485,-279.2347029,0.00018728,2]
[358367912,1745001032666,-500.0,0.00018728,2]
[358367913,1745001032676,-500.0,0.00018728,2]
[358367914,1745001032686,-500.0,0.00018728,2]
[358367915,1745001032696,-500.0,0.00018728,2]
[358367916,1745001032705,-500.0,0.00018728,2]
[358367917,1745001032715,-500.0,0.00018728,2]
[358367918,1745001032724,-500.0,0.00018728,2]
[358367919,1745001032734,-500.0,0.00018728,2]
[358367920,1745001032744,-277.92347029,0.00018728,2]
[358367921,1745001032754,-500.0,0.00018728,2]
[358367922,1745001032763,-500.0,0.00018728,2]
[358367923,1745001032773,-500.0,0.00018728,2]
[358367924,1745001032782,-500.0,0.00018728,2]
[358367925,1745001032792,-500.0,0.00018728,2]
[358367926,1745001032802,-500.0,0.00018728,2]
[358367927,1745001032811,-500.0,0.00018728,2]
[358367928,1745001032821,-500.0,0.00018728,2]
[358367929,1745001032831,-500.0,0.00018728,2]
[358367930,1745001032841,-500.0,0.00018728,2]
[358367931,1745001032851,-500.0,0.00018728,2]